[Event "Klatov Bazar Besiny Cup 2018"]
[Site "Klatovy"]
[Date "2018.07.04"]
[Round "5"]
[White "Krzyzanowski, Marcin"]
[Black "Kopta, Pavel"]
[Result "1-0"]
[ECO "B76"]
[WhiteElo "2473"]
[BlackElo "2210"]
[Annotator "ChessBase"]
[PlyCount "81"]
[EventDate "2018.07.01"]
[EventType "swiss"]
[EventCountry "CZE"]
[SourceTitle "playchess.com"]
[Source "ChessBase"]
[SourceQuality "1"]
[TimeControl "40/7200:0"]

1. e4 {[%emt 0:00:00]} c5 {[%emt 0:00:00]} 2. Nf3 {[%emt 0:00:00]} d6 {[%emt 0:00:00]} 3. d4 {[%emt 0:00:00]} cxd4 {[%emt 0:00:00]} 4. Nxd4 {[%emt 0:00:00]} Nf6 {[%emt 0:00:00]} 5. Nc3 {[%emt 0:00:00]} g6 {[%emt 0:00:00]} 6. Be3 {[%emt 0:00:00]} Bg7 {[%emt 0:00:00]} 7. f3 {[%emt 0:00:00]} O-O {[%emt 0:00:00]} 8. Qd2 {[%emt 0:00:00]} Nc6 {[%emt 0:00:00]} 9. O-O-O {[%emt 0:00:00]} d5 {[%emt 0:00:00]} 10. Qe1 {[%emt 0:00:00]} e5 {[%emt 0:00:00]} 11. Nxc6 {[%emt 0:00:00]} bxc6 {[%emt 0:00:00]} 12. exd5 {[%emt 0:00:00]} cxd5 {[%emt 0:00:00]} 13. Bg5 {[%emt 0:00:00]} Bb7 {[%emt 0:02:25]} 14. Bc4 {[%emt 0:07:19]} Qb6 {[%emt 0:12:53]} 15. Bxf6 {[%emt 0:04:51]} Bxf6 {[%emt 0:00:41]} 16. Nxd5 {[%emt 0:03:52]} Bxd5 {[%emt 0:01:28]} 17. Rxd5 {[%emt 0:01:53]} e4 {[%emt 0:29:15]} 18. Rb5 {[%emt 0:08:18]} Qc7 {[%emt 0:02:16]} 19. Qxe4 {[%emt 0:02:52]} Rad8 {[%emt 0:00:07]} 20. Rb7 {[%emt 0:14:47]} Qa5 {[%emt 0:10:07]} 21. c3 {[%emt 0:05:23]} Rc8 {[%emt 0:07:32]} 22. Kb1 {[%emt 0:01:43]} Qc5 {[%emt 0:00:34]} 23. Bb3 {[%emt 0:00:47]} Rcd8 {[%emt 0:00:55]} 24. Qc4 {[%emt 0:02:44]} Qf5+ {[%emt 0:00:13]} 25. Ka1 {[%emt 0:02:18]} Bg7 {[%emt 0:00:11]} 26. Qe4 {[%emt 0:03:56]} Qc5 {[%emt 0:02:08]} 27. Re1 {[%emt 0:04:20]} Kh8 {[%emt 0:03:47]} 28. Rxf7 {[%emt 0:03:21]} Rxf7 {[%emt 0:06:58]} 29. Bxf7 {[%emt 0:00:00]} Qc7 {[%emt 0:00:00]} 30. Bb3 {[%emt 0:02:41]} Qxh2 {[%emt 0:00:09]} 31. g4 {[%emt 0:02:06]} Rf8 {[%emt 0:00:40]} 32. a4 {[%emt 0:01:25]} Qf2 {[%emt 0:02:14]} 33. Re3 {[%emt 0:00:46]} a5 {[%emt 0:04:51]} 34. Ka2 {[%emt 0:01:15]} Qg1 {[%emt 0:01:57]} 35. Qe7 {[%emt 0:01:11]} Qf1 {[%emt 0:05:13]} 36. Qb7 {[%emt 0:00:46]} Bf6 {[%emt 0:02:11]} 37. Qd7 {[%emt 0:07:00]} Qa6 {[%emt 0:02:21]} 38. Re8 {[%emt 0:01:03]} Rxe8 {[%emt 0:00:00]} 39. Qxe8+ {[%emt 0:00:00]} Kg7 {[%emt 0:00:00]} 40. Qf7+ {[%emt 0:00:06]} Kh6 {[%emt 0:00:00]} 41. f4 {[%emt 1:59:37]} 1-0

[Event "Klatov Bazar Besiny Cup 2018"]
[Site "Klatovy"]
[Date "2018.07.04"]
[Round "5"]
[White "Xu, XianLiang"]
[Black "Vyprachticky, David"]
[Result "1/2-1/2"]
[ECO "A13"]
[WhiteElo "2430"]
[BlackElo "2301"]
[Annotator "NA"]
[PlyCount "62"]
[EventDate "2018.07.01"]
[EventType "swiss"]
[EventCountry "CZE"]
[SourceTitle "playchess.com"]
[Source "ChessBase"]
[SourceQuality "1"]
[TimeControl "40/7200:0"]

1. c4 {[%emt 0:00:00]} e6 {[%emt 0:07:08]} 2. g3 {[%emt 0:00:00]} d5 {[%emt 0:00:11]} 3. Nf3 {[%emt 0:00:13]} Nf6 {[%emt 0:03:22]} 4. Bg2 {[%emt 0:00:00]} Be7 {[%emt 0:00:11]} 5. b3 {[%emt 0:03:24]} c5 {[%emt 0:02:22]} 6. Bb2 {[%emt 0:02:45]} O-O {[%emt 0:00:27]} 7. O-O {[%emt 0:00:17]} Nc6 {[%emt 0:00:00]} 8. cxd5 {[%emt 0:01:19]} Nxd5 {[%emt 0:00:25]} 9. Nc3 {[%emt 0:03:15]} Nxc3 {[%emt 0:06:44]} 10. Bxc3 {[%emt 0:00:21]} Qc7 {[%emt 0:02:59]} 11. Rc1 {[%emt 0:05:38]} Rd8 {[%emt 0:09:00]} 12. Qc2 {[%emt 0:02:32]} Bd7 {[%emt 0:01:46]} 13. Qb2 {[%emt 0:04:20]} Bf8 {[%emt 0:03:01]} 14. d4 {[%emt 0:01:35]} cxd4 {[%emt 0:00:24]} 15. Nxd4 {[%emt 0:00:00]} Qb6 {[%emt 0:00:16]} 16. Nxc6 {[%emt 0:04:38]} Bxc6 {[%emt 0:00:00]} 17. Bxc6 {[%emt 0:00:00]} bxc6 {[%emt 0:00:00]} 18. Rfd1 {[%emt 0:01:27]} Rxd1+ {[%emt 0:09:46]} 19. Rxd1 {[%emt 0:00:00]} Rd8 {[%emt 0:00:00]} 20. Rxd8 {[%emt 0:01:03]} Qxd8 {[%emt 0:00:00]} 21. Qc2 {[%emt 0:00:00]} Qd5 {[%emt 0:00:00]} 22. e4 {[%emt 0:00:00]} Qc5 {[%emt 0:01:57]} 23. Qd3 {[%emt 0:00:55]} Qa3 {[%emt 0:02:44]} 24. Qd2 {[%emt 0:01:15]} Qe7 {[%emt 0:05:55]} 25. Kg2 {[%emt 0:00:54]} c5 {[%emt 0:01:36]} 26. Qd3 {[%emt 0:02:08]} Qb7 {[%emt 0:02:51]} 27. Kg1 {[%emt 0:04:27]} Be7 {[%emt 0:01:00]} 28. Bb2 {[%emt 0:03:20]} h6 {[%emt 0:00:54]} 29. h4 {[%emt 0:00:34]} Qc6 {[%emt 0:00:12]} 30. Bc3 {[%emt 0:04:09]} Qb7 {[%emt 0:02:06]} 31. Bb2 {[%emt 0:02:28]} Qc6 {[%emt 0:00:51]} 1/2-1/2

[Event "Klatov Bazar Besiny Cup 2018"]
[Site "Klatovy"]
[Date "2018.07.04"]
[Round "5"]
[White "Pulpan, Jakub"]
[Black "Toman, Ondrej"]
[Result "1-0"]
[ECO "C10"]
[WhiteElo "2386"]
[BlackElo "2197"]
[Annotator "NA"]
[PlyCount "53"]
[EventDate "2018.07.01"]
[EventType "swiss"]
[EventCountry "CZE"]
[SourceTitle "playchess.com"]
[Source "ChessBase"]
[SourceQuality "1"]
[TimeControl "40/7200:0"]

1. e4 {[%emt 0:00:00]} e6 {[%emt 0:00:00]} 2. d4 {[%emt 0:00:00]} d5 {[%emt 0:00:00]} 3. Nc3 {[%emt 0:00:00]} h6 {[%emt 0:00:00]} 4. Bd3 {[%emt 0:10:48]} Bb4 {[%emt 0:02:24]} 5. Nge2 {[%emt 0:03:44]} c5 {[%emt 0:09:49]} 6. exd5 {[%emt 0:04:05]} exd5 {[%emt 0:03:42]} 7. dxc5 {[%emt 0:01:20]} Nf6 {[%emt 0:01:20]} 8. Be3 {[%emt 0:03:34]} Nc6 {[%emt 0:07:07]} 9. Qd2 {[%emt 0:06:02]} O-O {[%emt 0:13:58]} 10. a3 {[%emt 0:01:42]} Qa5 {[%emt 0:04:54]} 11. O-O {[%emt 0:06:47]} Bxc3 {[%emt 0:00:42]} 12. bxc3 {[%emt 0:03:04]} Ng4 {[%emt 0:07:33]} 13. Nf4 {[%emt 0:03:55]} Be6 {[%emt 0:02:27]} 14. Rfe1 {[%emt 0:07:50]} Rac8 {[%emt 0:04:46]} 15. h3 {[%emt 0:04:08]} Nge5 {[%emt 0:03:06]} 16. Nh5 {[%emt 0:03:39]} Qd8 {[%emt 0:29:32]} 17. Bxh6 {[%emt 0:11:16]} Qh4 {[%emt 0:00:00]} 18. Nxg7 {[%emt 0:09:23]} Bxh3 {[%emt 0:02:01]} 19. Nf5 {[%emt 0:01:13]} Qg4 {[%emt 0:00:46]} 20. Ng3 {[%emt 0:01:00]} Bxg2 {[%emt 0:04:11]} 21. Kxg2 {[%emt 0:02:20]} Nf3 {[%emt 0:00:00]} 22. Qf4 {[%emt 0:00:33]} Nxe1+ {[%emt 0:01:51]} 23. Rxe1 {[%emt 0:00:00]} Qxf4 {[%emt 0:00:00]} 24. Bxf4 {[%emt 0:00:00]} Rfe8 {[%emt 0:00:00]} 25. Rh1 {[%emt 0:00:00]} Ne5 {[%emt 0:00:00]} 26. Bh7+ {[%emt 0:00:00]} Kg7 {[%emt 0:00:00]} 27. Nf5+ {[%emt 0:00:00]} 1-0

[Event "Klatov Bazar Besiny Cup 2018"]
[Site "Klatovy"]
[Date "2018.07.04"]
[Round "5"]
[White "Hollan, Martin"]
[Black "Straka, Vojtech"]
[Result "1/2-1/2"]
[ECO "B11"]
[WhiteElo "2341"]
[BlackElo "2379"]
[Annotator "NA"]
[PlyCount "32"]
[EventDate "2018.07.01"]
[EventType "swiss"]
[EventCountry "CZE"]
[SourceTitle "playchess.com"]
[Source "ChessBase"]
[SourceQuality "1"]
[TimeControl "40/7200:0"]

1. e4 {[%emt 0:00:00]} c6 {[%emt 0:00:00]} 2. Nf3 {[%emt 0:01:06]} d5 {[%emt 0:00:00]} 3. Nc3 {[%emt 0:00:00]} Bg4 {[%emt 0:01:43]} 4. h3 {[%emt 0:00:26]} Bxf3 {[%emt 0:00:00]} 5. Qxf3 {[%emt 0:00:00]} e6 {[%emt 0:00:00]} 6. d4 {[%emt 0:02:20]} dxe4 {[%emt 0:03:09]} 7. Nxe4 {[%emt 0:06:47]} Qxd4 {[%emt 0:09:05]} 8. c3 {[%emt 0:02:26]} Qb6 {[%emt 0:06:54]} 9. Be3 {[%emt 0:05:54]} Qxb2 {[%emt 0:04:04]} 10. Rd1 {[%emt 0:00:00]} Nd7 {[%emt 0:00:42]} 11. Rxd7 {[%emt 0:00:30]} Kxd7 {[%emt 0:00:00]} 12. Qxf7+ {[%emt 0:00:00]} Ne7 {[%emt 0:00:00]} 13. Nc5+ {[%emt 0:00:00]} Kd8 {[%emt 0:00:00]} 14. Qxe6 {[%emt 0:00:26]} Qb1+ {[%emt 0:00:00]} 15. Kd2 {[%emt 0:00:00]} Qb2+ {[%emt 0:00:00]} 16. Kd3 {[%emt 0:00:00]} Qb1+ {[%emt 0:00:00] Ke4} 1/2-1/2

[Event "Klatov Bazar Besiny Cup 2018"]
[Site "Klatovy"]
[Date "2018.07.04"]
[Round "5"]
[White "Mejzlik, Ondrej"]
[Black "Molkanov, Oleg"]
[Result "1-0"]
[ECO "A89"]
[WhiteElo "2287"]
[BlackElo "2051"]
[Annotator "ChessBase"]
[PlyCount "75"]
[EventDate "2018.07.01"]
[EventType "swiss"]
[EventCountry "CZE"]
[SourceTitle "playchess.com"]
[Source "ChessBase"]
[SourceQuality "1"]
[TimeControl "40/7200:0"]

1. c4 {[%emt 0:00:00]} f5 {[%emt 0:00:00]} 2. Nc3 {[%emt 0:00:00]} Nf6 {[%emt 0:00:00]} 3. g3 {[%emt 0:00:00]} g6 {[%emt 0:00:00]} 4. Bg2 {[%emt 0:00:00]} Bg7 {[%emt 0:00:00]} 5. Nf3 {[%emt 0:00:00]} O-O {[%emt 0:00:00]} 6. O-O {[%emt 0:00:00]} d6 {[%emt 0:00:00]} 7. d4 {[%emt 0:00:00]} Nc6 {[%emt 0:00:00]} 8. b3 {[%emt 0:08:23]} e5 {[%emt 0:00:00]} 9. dxe5 {[%emt 0:00:33]} dxe5 {[%emt 0:00:00]} 10. Ba3 {[%emt 0:00:00]} Re8 {[%emt 0:24:45]} 11. Nb5 {[%emt 0:13:24]} Bd7 {[%emt 0:11:37]} 12. Ng5 {[%emt 0:08:30]} e4 {[%emt 0:08:21]} 13. Bb2 {[%emt 0:03:05]} Ne5 {[%emt 0:25:17]} 14. Nc3 {[%emt 0:19:08]} h6 {[%emt 0:11:19]} 15. Nh3 {[%emt 0:00:35]} c6 {[%emt 0:18:56]} 16. Qc2 {[%emt 0:13:54]} Qe7 {[%emt 0:00:13]} 17. Rad1 {[%emt 0:06:54]} Rad8 {[%emt 0:01:09]} 18. f3 {[%emt 0:02:21]} g5 {[%emt 0:07:20]} 19. Nf2 {[%emt 0:01:37]} e3 {[%emt 0:00:49]} 20. Nd3 {[%emt 0:00:00]} Nxd3 {[%emt 0:01:34]} 21. Qxd3 {[%emt 0:01:24]} Qf7 {[%emt 0:04:05]} 22. Bh3 {[%emt 0:08:29]} f4 {[%emt 0:01:22]} 23. Bxd7 {[%emt 0:00:42]} Rxd7 {[%emt 0:02:34]} 24. Qf5 {[%emt 0:00:50]} fxg3 25. hxg3 {[%emt 0:00:29]} Rd2 {[%emt 0:00:01]} 26. Bc1 {[%emt 0:01:02]} Rxd1 {[%emt 0:00:00]} 27. Nxd1 {[%emt 0:00:00]} Qc7 {[%emt 0:00:00]} 28. Kg2 {[%emt 0:00:06]} Nh5 {[%emt 0:00:00]} 29. Qh3 {[%emt 0:00:00]} Nf4+ {[%emt 0:00:02]} 30. gxf4 {[%emt 0:00:00]} gxf4 {[%emt 0:00:00]} 31. Bb2 {[%emt 0:01:08]} Bxb2 {[%emt 0:00:00]} 32. Nxb2 {[%emt 0:00:00]} Qg7+ {[%emt 0:00:00]} 33. Qg4 {[%emt 0:00:00]} Re5 {[%emt 0:00:00]} 34. Qxg7+ {[%emt 0:00:00]} Kxg7 {[%emt 0:00:00]} 35. Nd3 {[%emt 0:00:00]} Rg5+ {[%emt 0:00:00]} 36. Kh3 {[%emt 0:00:00]} Kf6 {[%emt 0:00:00]} 37. Nxf4 {[%emt 0:00:00]} Kf5 {[%emt 0:00:00]} 38. Ng2 {[%emt 0:00:00]} 1-0

[Event "Klatov Bazar Besiny Cup 2018"]
[Site "Klatovy"]
[Date "2018.07.04"]
[Round "5"]
[White "Soural, Jan"]
[Black "Hausner, Ivan"]
[Result "1/2-1/2"]
[ECO "A40"]
[WhiteElo "2192"]
[BlackElo "2321"]
[Annotator "NA"]
[PlyCount "52"]
[EventDate "2018.07.01"]
[EventType "swiss"]
[EventCountry "CZE"]
[SourceTitle "playchess.com"]
[Source "ChessBase"]
[SourceQuality "1"]
[TimeControl "40/7200:0"]

1. d4 {[%emt 0:00:00]} e6 {[%emt 0:00:00]} 2. c4 {[%emt 0:00:00]} b6 {[%emt 0:00:00]} 3. e4 {[%emt 0:01:11]} Bb7 {[%emt 0:00:00]} 4. Bd3 {[%emt 0:00:00]} f5 {[%emt 0:00:00]} 5. exf5 {[%emt 0:00:00]} Bb4+ {[%emt 0:00:00]} 6. Kf1 {[%emt 0:02:45]} Nf6 {[%emt 0:00:00]} 7. c5 {[%emt 0:08:53]} bxc5 {[%emt 0:00:00]} 8. a3 {[%emt 0:00:00]} c4 {[%emt 0:00:00]} 9. Bxc4 {[%emt 0:00:00]} Be7 {[%emt 0:01:51]} 10. Qb3 {[%emt 0:11:56]} Bd5 {[%emt 0:00:14]} 11. fxe6 {[%emt 0:12:46]} dxe6 {[%emt 0:02:00]} 12. Nc3 {[%emt 0:00:13]} O-O {[%emt 0:02:47]} 13. Bxd5 {[%emt 0:07:47]} exd5 {[%emt 0:00:00]} 14. Nf3 {[%emt 0:00:00]} Nc6 {[%emt 0:00:21]} 15. Bg5 {[%emt 0:06:56]} Rb8 {[%emt 0:00:37]} 16. Qa4 {[%emt 0:01:45]} Qd6 {[%emt 0:01:24]} 17. b4 {[%emt 0:04:43]} Ne4 {[%emt 0:00:40]} 18. Bxe7 {[%emt 0:04:35]} Nxe7 {[%emt 0:00:00]} 19. Qc2 {[%emt 0:00:25]} Qc6 {[%emt 0:01:56]} 20. Rc1 {[%emt 0:00:00]} a5 {[%emt 0:00:18]} 21. Nxe4 {[%emt 0:13:03]} Qxc2 {[%emt 0:00:26]} 22. Nf6+ {[%emt 0:00:03]} Rxf6 {[%emt 0:00:00]} 23. Rxc2 {[%emt 0:00:00]} axb4 {[%emt 0:00:00]} 24. axb4 {[%emt 0:00:00]} Rxb4 {[%emt 0:00:00]} 25. Ke2 {[%emt 0:00:00]} Nf5 {[%emt 0:01:06]} 26. Rhc1 {[%emt 0:02:53]} Nxd4+ {[%emt 0:01:32]} 1/2-1/2

[Event "Klatov Bazar Besiny Cup 2018"]
[Site "Klatovy"]
[Date "2018.07.04"]
[Round "5"]
[White "Hurdzan, Tomas"]
[Black "Bures, Jaroslav"]
[Result "0-1"]
[ECO "B46"]
[WhiteElo "2164"]
[BlackElo "2406"]
[Annotator "ChessBase"]
[PlyCount "64"]
[EventDate "2018.07.01"]
[EventType "swiss"]
[EventCountry "CZE"]
[SourceTitle "playchess.com"]
[Source "ChessBase"]
[SourceQuality "1"]
[TimeControl "40/7200:0"]

1. e4 {[%emt 0:00:00]} c5 {[%emt 0:03:14]} 2. Nc3 {[%emt 0:00:00]} e6 {[%emt 0:01:55]} 3. Nf3 {[%emt 0:00:00]} Nc6 {[%emt 0:00:17]} 4. d4 {[%emt 0:00:00]} cxd4 {[%emt 0:00:10]} 5. Nxd4 {[%emt 0:00:00]} a6 {[%emt 0:00:15]} 6. Be3 {[%emt 0:00:00]} Qc7 {[%emt 0:02:01]} 7. Qf3 {[%emt 0:02:26]} Nf6 {[%emt 0:00:00]} 8. O-O-O {[%emt 0:00:44]} h5 {[%emt 0:00:00]} 9. h3 {[%emt 0:13:32]} Ne5 {[%emt 0:00:00]} 10. Qe2 {[%emt 0:00:56]} Ng6 {[%emt 0:00:00]} 11. g3 {[%emt 0:02:45]} Bb4 {[%emt 0:06:46]} 12. Bd2 {[%emt 0:01:53]} h4 {[%emt 0:02:09]} 13. Qe1 {[%emt 0:06:30]} hxg3 {[%emt 0:14:07]} 14. fxg3 {[%emt 0:00:00]} b5 {[%emt 0:00:33]} 15. Bd3 {[%emt 0:14:43]} Bb7 {[%emt 0:01:27]} 16. g4 {[%emt 0:13:24]} Bxc3 {[%emt 0:01:20]} 17. Bxc3 {[%emt 0:02:21]} Nxe4 {[%emt 0:03:31]} 18. Ba5 {[%emt 0:14:05]} Qe5 {[%emt 0:26:43]} 19. Ne2 {[%emt 0:05:02]} Rc8 {[%emt 0:02:21]} 20. Kb1 {[%emt 0:03:52]} Nf6 {[%emt 0:10:27]} 21. Rf1 {[%emt 0:07:11]} Rxh3 {[%emt 0:00:00]} 22. Bxg6 {[%emt 0:02:20]} fxg6 {[%emt 0:00:00]} 23. Bc3 {[%emt 0:02:50]} Qg5 {[%emt 0:08:39]} 24. Nf4 {[%emt 0:08:09]} Rhxc3 {[%emt 0:00:00]} 25. Nxe6 {[%emt 0:02:29]} Qe3 {[%emt 0:07:50]} 26. Nxg7+ {[%emt 0:00:00]} Kf7 {[%emt 0:01:55]} 27. Qh4 {[%emt 0:04:43]} Bf3 {[%emt 0:02:08]} 28. bxc3 {[%emt 0:00:00]} Qxc3 {[%emt 0:01:13]} 29. g5 {[%emt 0:03:09]} Qxc2+ {[%emt 0:02:24]} 30. Ka1 {[%emt 0:00:00]} Qc3+ {[%emt 0:00:56]} 31. Kb1 {[%emt 0:00:00]} Bxd1 {[%emt 0:00:00]} 32. Rxf6+ {[%emt 0:00:00]} Kg8 {[%emt 0:00:00]} 0-1

[Event "Klatov Bazar Besiny Cup 2018"]
[Site "Klatovy"]
[Date "2018.07.04"]
[Round "5"]
[White "Kotal, Vaclav"]
[Black "Jurek, Josef"]
[Result "1-0"]
[ECO "E20"]
[WhiteElo "2101"]
[BlackElo "2277"]
[Annotator "NA"]
[PlyCount "49"]
[EventDate "2018.07.01"]
[EventType "swiss"]
[EventCountry "CZE"]
[SourceTitle "playchess.com"]
[Source "ChessBase"]
[SourceQuality "1"]
[TimeControl "40/7200:0"]

1. d4 {[%emt 0:00:00]} Nf6 {[%emt 0:00:00]} 2. c4 {[%emt 0:00:00]} e6 {[%emt 0:00:23]} 3. Nc3 {[%emt 0:00:00]} Bb4 {[%emt 0:00:00]} 4. g3 {[%emt 0:00:00]} c5 {[%emt 0:02:13]} 5. Nf3 {[%emt 0:00:00]} O-O {[%emt 0:02:58]} 6. Bg2 {[%emt 0:00:00]} d5 {[%emt 0:01:19]} 7. dxc5 {[%emt 0:00:18]} dxc4 {[%emt 0:05:27]} 8. O-O {[%emt 0:00:53]} Nc6 {[%emt 0:02:47]} 9. Qa4 {[%emt 0:07:23]} Qa5 {[%emt 0:02:48]} 10. Qxa5 {[%emt 0:02:02]} Nxa5 {[%emt 0:00:56]} 11. Be3 {[%emt 0:05:46]} Ng4 {[%emt 0:05:36]} 12. Bd4 {[%emt 0:03:14]} Nc6 {[%emt 0:03:13]} 13. a3 {[%emt 0:03:26]} Ba5 {[%emt 0:04:37]} 14. Ne4 {[%emt 0:04:44]} Nxd4 {[%emt 0:11:17]} 15. Nxd4 {[%emt 0:00:00]} Ne5 {[%emt 0:11:06]} 16. Nd6 {[%emt 0:04:37]} Rb8 {[%emt 0:03:42]} 17. f4 {[%emt 0:02:52]} Bd2 {[%emt 0:02:00]} 18. Nc2 {[%emt 0:05:12]} c3 {[%emt 0:03:26]} 19. fxe5 {[%emt 0:00:13]} cxb2 {[%emt 0:00:00]} 20. Rab1 {[%emt 0:03:43]} Bc3 {[%emt 0:02:01]} 21. Nc4 {[%emt 0:01:38]} f6 {[%emt 0:01:54]} 22. Rf3 {[%emt 0:02:05]} Bxe5 {[%emt 0:00:26]} 23. Nxe5 {[%emt 0:00:00]} fxe5 {[%emt 0:00:00]} 24. Rxf8+ {[%emt 0:00:00]} Kxf8 {[%emt 0:00:00]} 25. Rxb2 {[%emt 0:00:00]} 1-0

[Event "Klatov Bazar Besiny Cup 2018"]
[Site "Klatovy"]
[Date "2018.07.05"]
[Round "6"]
[White "Neuman, Petr"]
[Black "Simek, Petr"]
[Result "1-0"]
[ECO "A10"]
[WhiteElo "2432"]
[BlackElo "2354"]
[Annotator "ChessBase"]
[PlyCount "105"]
[EventDate "2018.07.01"]
[EventType "swiss"]
[EventCountry "CZE"]
[SourceTitle "playchess.com"]
[Source "ChessBase"]
[SourceQuality "1"]
[TimeControl "40/7200:0"]

1. c4 {[%emt 0:00:00]} f5 {[%emt 0:00:00]} 2. g3 {[%emt 0:00:00]} Nf6 {[%emt 0:00:00]} 3. Bg2 {[%emt 0:00:00]} d6 {[%emt 0:00:00]} 4. Nc3 {[%emt 0:00:00]} e5 {[%emt 0:03:05]} 5. d3 {[%emt 0:02:50]} Be7 {[%emt 0:09:12]} 6. e3 {[%emt 0:07:31]} O-O {[%emt 0:00:00]} 7. Nge2 {[%emt 0:00:00]} Nbd7 {[%emt 0:13:24]} 8. O-O {[%emt 0:01:07]} Qe8 {[%emt 0:00:05]} 9. f4 {[%emt 0:04:45]} Qh5 {[%emt 0:05:28]} 10. b3 {[%emt 0:17:11]} Re8 {[%emt 0:06:24]} 11. h3 {[%emt 0:05:47]} Bd8 {[%emt 0:24:50]} 12. Ba3 {[%emt 0:12:59]} Qg6 {[%emt 0:16:51]} 13. Kh1 {[%emt 0:07:45]} Kh8 {[%emt 0:03:55]} 14. e4 {[%emt 0:11:32]} exf4 {[%emt 0:13:16]} 15. exf5 {[%emt 0:00:17]} Qxf5 {[%emt 0:00:00]} 16. Nxf4 {[%emt 0:00:33]} Ne5 {[%emt 0:04:02]} 17. Nce2 {[%emt 0:19:28]} Ng6 {[%emt 0:03:44]} 18. Qd2 {[%emt 0:04:24]} Nxf4 {[%emt 0:00:15]} 19. Nxf4 {[%emt 0:00:00]} Qg5 {[%emt 0:00:36]} 20. Rae1 {[%emt 0:00:10]} Bd7 {[%emt 0:02:42]} 21. Rxe8+ {[%emt 0:02:37]} Bxe8 {[%emt 0:00:00]} 22. Qf2 {[%emt 0:01:47]} Bc6 {[%emt 0:00:07]} 23. Bxc6 {[%emt 0:01:47]} bxc6 {[%emt 0:00:00]} 24. Bb2 {[%emt 0:00:30]} Qf5 {[%emt 0:01:51]} 25. g4 {[%emt 0:00:43]} Qd7 {[%emt 0:00:53]} 26. Nh5 {[%emt 0:06:29]} Qe6 {[%emt 0:01:34]} 27. Nxf6 {[%emt 0:04:05]} Bxf6 {[%emt 0:00:00]} 28. Bxf6 {[%emt 0:00:00]} Qxf6 {[%emt 0:00:00]} 29. Qxf6 {[%emt 0:00:00]} gxf6 {[%emt 0:00:00]} 30. Rxf6 {[%emt 0:00:00]} Kg7 {[%emt 0:00:00]} 31. Rf5 {[%emt 0:00:00]} c5 {[%emt 0:00:00]} 32. Kg2 {[%emt 0:02:22]} a5 {[%emt 0:00:00]} 33. Rf2 {[%emt 0:00:00]} a4 {[%emt 0:03:01]} 34. bxa4 {[%emt 0:00:00]} Rxa4 {[%emt 0:00:00]} 35. Kf3 {[%emt 0:00:00]} c6 {[%emt 0:00:07]} 36. Ke3 {[%emt 0:00:00]} d5 {[%emt 0:03:34]} 37. Rc2 {[%emt 0:00:00]} Ra5 {[%emt 0:00:26]} 38. Kf4 {[%emt 0:00:00]} Ra3 {[%emt 0:00:02]} 39. Ke3 {[%emt 0:01:18]} Ra5 {[%emt 0:00:00]} 40. h4 {[%emt 0:00:00]} Kg6 {[%emt 0:00:00]} 41. Kf4 {[%emt 1:59:27]} Ra3 {[%emt 1:59:36]} 42. h5+ {[%emt 0:00:22]} Kf7 {[%emt 0:00:02]} 43. cxd5 {[%emt 0:01:12]} cxd5 {[%emt 0:00:00]} 44. Rxc5 {[%emt 0:00:00]} Rxd3 {[%emt 0:00:00]} 45. Kg5 {[%emt 0:00:00]} d4 {[%emt 0:00:00]} 46. Kh6 {[%emt 0:00:00]} Rg3 {[%emt 0:00:11]} 47. g5 {[%emt 0:00:00]} Rh3 {[%emt 0:00:05]} 48. Rd5 {[%emt 0:00:00]} d3 {[%emt 0:00:00]} 49. a4 {[%emt 0:00:00]} Ke6 {[%emt 0:00:00]} 50. Rd8 {[%emt 0:00:00]} Rh4 {[%emt 0:00:00]} 51. Rxd3 {[%emt 0:00:00]} Rxa4 {[%emt 0:00:00]} 52. Kxh7 {[%emt 0:00:00]} Kf5 {[%emt 0:00:00]} 53. g6 {[%emt 0:00:00]} 1-0

[Event "Klatov Bazar Besiny Cup 2018"]
[Site "Klatovy"]
[Date "2018.07.05"]
[Round "6"]
[White "Xu, XianLiang"]
[Black "Hollan, Martin"]
[Result "1/2-1/2"]
[ECO "C34"]
[WhiteElo "2430"]
[BlackElo "2341"]
[Annotator "NA"]
[PlyCount "32"]
[EventDate "2018.07.01"]
[EventType "swiss"]
[EventCountry "CZE"]
[SourceTitle "playchess.com"]
[Source "ChessBase"]
[SourceQuality "1"]
[TimeControl "40/7200:0"]

1. e4 {[%emt 0:00:00]} e5 {[%emt 0:01:14]} 2. f4 {[%emt 0:00:00]} exf4 {[%emt 0:02:41]} 3. Nf3 {[%emt 0:00:00]} d6 {[%emt 0:00:00]} 4. Bc4 {[%emt 0:00:00]} h6 {[%emt 0:01:18]} 5. d4 {[%emt 0:00:00]} g5 {[%emt 0:00:00]} 6. c3 {[%emt 0:05:47]} Bg7 {[%emt 0:01:53]} 7. Qb3 {[%emt 0:03:44]} Qe7 {[%emt 0:00:00]} 8. O-O {[%emt 0:01:10]} Nc6 {[%emt 0:08:03]} 9. h4 {[%emt 0:07:34]} g4 {[%emt 0:04:26]} 10. Nh2 {[%emt 0:05:36]} f3 {[%emt 0:02:18]} 11. Nxg4 {[%emt 0:09:23]} Nxd4 {[%emt 0:09:48]} 12. cxd4 {[%emt 0:00:10]} Bxg4 {[%emt 0:00:00]} 13. Be3 {[%emt 0:18:16]} fxg2 {[%emt 0:20:05]} 14. Bxf7+ {[%emt 0:03:39]} Kd8 {[%emt 0:00:00]} 15. Rf2 {[%emt 0:01:17]} Qxh4 {[%emt 0:04:24]} 16. Rxg2 {[%emt 0:00:20]} Qe1+ {[%emt 0:00:00]} 1/2-1/2